[Event "NOR-ch Women 2020"]
[Site "Bergen"]
[Date "2020.02.28"]
[Round "1.6"]
[White "Mork, Ramona"]
[Black "Kvendseth, Thyra"]
[Result "1/2-1/2"]
[ECO "C47"]
[WhiteElo "1750"]
[BlackElo "1889"]
[Annotator "NA RC"]
[PlyCount "73"]
[EventDate "2020.02.28"]
[EventType "swiss"]
[EventCountry "NOR"]
[SourceTitle "playchess.com"]
[Source "ChessBase"]
[SourceQuality "1"]
[TimeControl "5400+30"]

{[%evp 32,61,67,61,66,57,59,58,57,49,64,63,86,45,60,39,75,56,71,64,59,53,110,85,86,84,93,37,39,45,48,689]} 1. e4 {[%emt 0:00:00]} e5 {[%emt 0:00:00]} 2. Nf3 {[%emt 0:00:00]} Nc6 {[%emt 0:00:00]} 3. d4 {[%emt 0:00:00]} exd4 {[%emt 0:00:00]} 4. Nxd4 {[%emt 0:00:00]} Nf6 {[%emt 0:00:09]} 5. Nc3 {[%emt 0:00:19]} Bb4 {[%emt 0:02:24]} 6. Nxc6 {[%emt 0:01:20]} bxc6 {[%emt 0:00:14]} 7. Bd3 {[%emt 0:02:52]} d5 {[%emt 0:03:11]} 8. exd5 {[%emt 0:01:35]} cxd5 {[%emt 0:00:30]} 9. O-O {[%emt 0:02:31]} O-O {[%emt 0:01:44]} 10. Bg5 {[%emt 0:03:03]} c6 {[%emt 0:02:14]} 11. Qf3 {[%emt 0:02:08]} Be7 {[%emt 0:01:24]} 12. h3 {[%emt 0:01:04]} Be6 {[%emt 0:04:36]} 13. Ne2 {[%emt 0:04:20]} c5 {[%emt 0:08:57] [#] C47: Scotch Four Knights and Four Knights with 4 g3.} 14. b3 $146 {[%emt 0:05:04]} ({Predecessor:} 14. c3 h6 15. Bf4 Re8 16. Rfe1 Qd7 17. Be5 Qb7 18. c4 Nd7 19. Bc3 Rab8 20. cxd5 Bxd5 21. Qf5 g6 22. Qg4 h5 23. Qg3 Be4 24. Bxe4 Qxe4 25. Rad1 Nf6 26. Nf4 Qf5 27. Rxe7 Rxe7 28. Nd5 {1-0 (28) Noritsyn,N (2425)-Bojkov,D (2544) Montreal 2011}) 14... c4 {[%emt 0:06:37]} 15. Bf5 {[%emt 0:07:02]} Qd7 {[%emt 0:03:49]} 16. Nd4 {[%emt 0:03:36]} g6 {[%emt 0:09:36]} 17. Bxe6 {[%emt 0:04:14]} fxe6 {[%emt 0:00:14]} 18. Qe2 {[%emt 0:01:59]} Ne4 {[%emt 0:12:15]} 19. Bxe7 $1 {[%emt 0:03:20]} Qxe7 {[%emt 0:00:16]} 20. bxc4 {[%emt 0:05:49]} Qf6 {[%emt 0:02:34]} 21. Nf3 {[%emt 0:05:32]} Nc3 {[%emt 0:04:02]} 22. Qe5 {[%emt 0:07:31]} dxc4 {[%emt 0:01:19]} 23. Rfe1 {[%emt 0:01:44]} Rae8 {[%emt 0:03:24]} 24. Re3 {[%emt 0:05:33]} Nd5 {[%emt 0:01:57]} 25. Re4 {[%emt 0:03:40]} c3 {[%emt 0:04:33]} 26. Rb1 {[%emt 0:03:10]} Nf4 {[%emt 0:01:27]} 27. Qxf6 {[%emt 0:02:36]} Rxf6 {[%emt 0:00:14]} 28. Ne5 {[%emt 0:02:51]} Rd8 {[%emt 0:01:10]} 29. Ng4 {[%emt 0:04:47]} (29. Ra4 $16 Ra8 30. Rb7) 29... Rff8 {[%emt 0:01:01]} 30. Rb7 {[%emt 0:02:00]} Rd4 $1 {[%emt 0:03:05]} 31. Nh6+ $18 {[%emt 0:02:02]} (31. Rxd4 $14 Ne2+ {[%mdl 64] Double Attack} 32. Kf1 Nxd4 33. Ne3) 31... Kh8 {[%emt 0:00:02]} 32. Rxd4 {[%emt 0:01:04]} Ne2+ {[%emt 0:00:10]} 33. Kf1 {[%emt 0:00:26]} Nxd4 {[%emt 0:00:08]} 34. Nf7+ {[%emt 0:01:17]} Kg8 {[%emt 0:02:13]} 35. Nh6+ {[%emt 0:00:15]} Kh8 {[%emt 0:00:06]} 36. Nf7+ {[%emt 0:00:06]} Kg8 {[%emt 0:02:10]} 37. Nh6+ {[%emt 0:00:06]} 1/2-1/2

[Event "NOR-ch Women 2020"]
[Site "Bergen"]
[Date "2020.02.29"]
[Round "2.3"]
[White "Kvendseth, Thyra"]
[Black "Skaslien, Ingrid"]
[Result "1/2-1/2"]
[ECO "D13"]
[WhiteElo "1889"]
[BlackElo "1847"]
[Annotator "NA RC"]
[PlyCount "153"]
[EventDate "2020.02.28"]
[EventType "swiss"]
[EventCountry "NOR"]
[SourceTitle "playchess.com"]
[Source "ChessBase"]
[SourceQuality "1"]
[TimeControl "5400+30"]

1. c4 {[%emt 0:00:00]} c6 {[%emt 0:00:00]} 2. Nc3 {[%emt 0:01:42]} d5 {[%emt 0:01:23]} 3. cxd5 {[%emt 0:03:10]} cxd5 {[%emt 0:00:12]} 4. d4 {[%emt 0:01:45]} e6 {[%emt 0:01:44]} 5. Nf3 {[%emt 0:03:43]} Nc6 {[%emt 0:01:32]} 6. Bf4 {[%emt 0:04:31]} Nf6 {[%emt 0:06:49]} 7. e3 {[%emt 0:03:58]} a6 {[%emt 0:03:49]} 8. Rc1 {[%emt 0:06:21]} Bd7 {[%emt 0:04:55]} 9. Bd3 {[%emt 0:02:26] D13: Slav Defence: Exchange variation without ...Bf5.} Be7 {[%emt 0:07:08]} 10. O-O {[%emt 0:04:47]} Nh5 {[%emt 0:14:02]} 11. Be5 {[%emt 0:04:57]} O-O {[%emt 0:04:41]} 12. Nd2 {[%emt 0:22:51]} g6 {[%emt 0:03:18] [#]} 13. g4 $146 {[%emt 0:03:45]} ({Predecessor:} 13. Bg3 Nxg3 14. hxg3 b5 15. Nb3 Rc8 16. e4 dxe4 17. Bxe4 Bg5 18. Rc2 Nb4 19. Re2 {½-½ (42) Mladenov,I (2222)-Vasilev,M (2429) Sunny Beach 2006}) 13... Nxe5 {[%emt 0:02:19]} 14. dxe5 {[%emt 0:01:56]} Ng7 {[%emt 0:00:07]} 15. Nb3 {[%emt 0:04:12]} Qb8 {[%emt 0:08:42]} 16. f4 {[%emt 0:00:42]} f6 {[%emt 0:01:41]} 17. exf6 {[%emt 0:00:40]} Bxf6 {[%emt 0:00:24]} 18. Nc5 {[%emt 0:03:34]} Bc6 {[%emt 0:01:06]} 19. g5 {[%emt 0:02:51]} (19. Qd2 $15) 19... Be7 {[%emt 0:01:56]} 20. Nb3 {[%emt 0:00:55]} Qa7 {[%emt 0:03:07]} 21. Qe2 {[%emt 0:01:02]} ({Only move:} 21. Nd4 $15) 21... e5 {[%emt 0:01:03]} ({Black should try} 21... Nh5 $17 22. Rf2 {[#]} e5 $1 {[%mdl 512]} 23. fxe5 Rxf2 24. Qxf2 Rf8) 22. fxe5 {[%emt 0:03:55]} Bxg5 {[%emt 0:00:34]} 23. Nd4 {[%emt 0:01:23]} Rfe8 {[%emt 0:05:30]} 24. Qf3 {[%emt 0:00:32]} Rf8 {[%emt 0:00:35]} ({Black should try} 24... Qb8 $1 $15) 25. Qg3 {[%emt 0:00:35]} Bh6 {[%emt 0:03:38]} 26. Qh3 {[%emt 0:01:20]} Bg5 {[%emt 0:00:59]} 27. Qg3 {[%emt 0:01:34]} Bh6 {[%emt 0:01:18]} 28. Rce1 {[%emt 0:03:16]} Nh5 {[%emt 0:01:42]} 29. Qg4 {[%emt 0:00:55]} Rxf1+ {[%emt 0:00:51]} 30. Bxf1 {[%emt 0:00:56]} Rf8 {[%emt 0:04:30]} 31. Bg2 {[%emt 0:01:10]} Qc5 {[%emt 0:02:38]} 32. Ne6 {[%emt 0:03:50]} Bd7 {[%emt 0:02:14]} 33. Nxc5 {[%emt 0:00:07]} Bxg4 {[%emt 0:00:05]} 34. Bxd5+ {[%emt 0:00:05]} Kh8 {[%emt 0:02:51]} 35. Bxb7 {[%emt 0:00:51]} Re8 {[%emt 0:00:41]} 36. Nd3 {[%emt 0:01:22]} ({But not} 36. Bxa6 Rxe5 37. N5e4 Bf5 $16) 36... a5 {[%emt 0:02:13]} 37. Ne4 {[%emt 0:01:26]} Re7 {[%emt 0:02:03]} 38. Nd6 {[%emt 0:00:39]} Ng7 {[%emt 0:01:08]} 39. Nf4 {[%emt 0:00:57]} Nf5 {[%emt 0:00:57]} 40. Bc6 {[%emt 0:04:19]} Nxe3 {[%emt 0:00:56]} 41. Rxe3 {[%emt 0:00:12]} Bxf4 {[%emt 0:00:05]} 42. Re4 {[%emt 0:00:54]} g5 {[%emt 0:00:58]} 43. Bd5 {[%emt 0:00:38]} Kg7 {[%emt 0:00:34]} 44. Nc4 {[%emt 0:00:20]} Bf3 {[%emt 0:01:44]} 45. Rd4 {[%emt 0:00:40]} Rd7 {[%emt 0:01:01]} 46. Rxf4 {[%emt 0:00:30]} Bxd5 {[%emt 0:00:12]} 47. Rd4 {[%emt 0:00:09]} Rc7 {[%emt 0:01:12]} 48. Rxd5 {[%emt 0:00:52]} Rxc4 {[%emt 0:00:05]} 49. Rb5 {[%emt 0:00:35]} a4 {[%emt 0:01:17]} 50. Kf2 {[%emt 0:00:24]} a3 {[%emt 0:00:30]} 51. bxa3 {[%emt 0:00:17]} Rc2+ {[%emt 0:00:04]} 52. Kg3 {[%emt 0:00:07]} Rxa2 {[%emt 0:00:04]} 53. Rb3 {[%emt 0:00:09]} Re2 {[%emt 0:00:18]} 54. Rb5 {[%emt 0:00:15]} Re3+ {[%emt 0:02:08]} 55. Kg4 {[%emt 0:00:06]} h6 {[%emt 0:00:52]} 56. Ra5 {[%emt 0:01:03]} Kf7 $11 {[%emt 0:00:44]} (56... Kg6 $5 57. Ra6+ $8 Kg7 $14) 57. h3 {[%emt 0:01:45]} Ke6 {[%emt 0:00:08]} 58. Ra6+ {[%emt 0:00:06]} Kxe5 {[%emt 0:00:09]} 59. Rxh6 {[%emt 0:00:07]} Rxa3 {[%emt 0:00:03]} 60. Rg6 {[%emt 0:00:17]} Ra1 {[%emt 0:00:41]} 61. Kxg5 {[%emt 0:00:11]} Rg1+ {[%emt 0:00:29]} 62. Kh5 {[%emt 0:00:15]} Rh1 {[%emt 0:00:28]} 63. h4 {[%emt 0:00:04]} Kf5 {[%emt 0:00:17]} 64. Rg8 {[%emt 0:00:38]} Kf6 {[%emt 0:00:08]} 65. Rg2 {[%emt 0:00:13]} Rf1 {[%emt 0:00:40]} 66. Kh6 {[%emt 0:00:13]} Kf7 {[%emt 0:00:41]} 67. h5 {[%emt 0:00:14]} Re1 {[%emt 0:00:35]} 68. Rg4 {[%emt 0:00:26]} Re5 {[%emt 0:00:31]} 69. Rg7+ {[%emt 0:00:43]} Kf6 {[%emt 0:00:48]} 70. Rb7 {[%emt 0:00:32]} Rd5 {[%emt 0:00:28]} 71. Rb6+ {[%emt 0:01:24]} Kf7 {[%emt 0:00:09]} 72. Rb2 {[%emt 0:00:41]} Kg8 {[%emt 0:01:08]} 73. Rb7 {[%emt 0:01:05]} Rd6+ {[%emt 0:00:36]} 74. Kg5 {[%emt 0:00:05]} Rd5+ {[%emt 0:00:36]} 75. Kf6 {[%emt 0:00:28]} Rd6+ {[%emt 0:00:13]} 76. Kg5 {[%emt 0:00:49]} Rd5+ {[%emt 0:00:06]} 77. Kf6 {[%emt 0:00:04]} 1/2-1/2

[Event "NOR-ch Women 2020"]
[Site "Bergen"]
[Date "2020.02.29"]
[Round "2.4"]
[White "Johnsen, Sylvia"]
[Black "Mork, Ramona"]
[Result "1-0"]
[ECO "A25"]
[WhiteElo "1862"]
[BlackElo "1750"]
[Annotator "NA RC"]
[PlyCount "117"]
[EventDate "2020.02.28"]
[EventType "swiss"]
[EventCountry "NOR"]
[SourceTitle "playchess.com"]
[Source "ChessBase"]
[SourceQuality "1"]
[TimeControl "5400+30"]

{[%evp 8,77,10,11,10,12,20,10,37,16,0,-1,12,18,15,12,12,12,25,19,19,21,24,10,12,0,24,12,30,0,6,-53,115,73,132,0,0,32767,32767,32767,32767,32767,32767,32767,223,288,222,227,324,215,226,224,270,277,267,293,258,300,257,306,475,333,437,32767,32767,32767,32767,32767,32767,740,1183,1414]} 1. c4 {[%emt 0:00:00]} Nf6 {[%emt 0:00:00]} 2. Nc3 {[%emt 0:00:00]} e5 {[%emt 0:01:51]} 3. g3 {[%emt 0:00:05]} Bc5 {[%emt 0:02:07]} 4. Bg2 {[%emt 0:01:03]} Nc6 {[%emt 0:01:18]} 5. d3 {[%emt 0:01:18]} h6 {[%emt 0:02:10]} 6. e3 {[%emt 0:02:16] A25: English Opening vs King's Indian with ...Nc6 but without early d3.} O-O {[%emt 0:02:05]} 7. Nge2 {[%emt 0:00:08] [#]} Ne7 $146 {[%emt 0:02:47]} ({Predecessor:} 7... Re8 8. O-O Bf8 9. h3 d6 10. e4 Nd4 11. Nxd4 exd4 12. Ne2 c5 13. b4 Nd7 {1-0 (57) Bartel,M (2599)-Sagit,R (2404) Plovdiv 2010}) 8. d4 {[%emt 0:02:39]} exd4 $1 {[%emt 0:00:43]} 9. exd4 {[%emt 0:00:14]} Bb4 {[%emt 0:04:34]} 10. O-O {[%emt 0:01:39]} Bxc3 {[%emt 0:01:01]} 11. Nxc3 {[%emt 0:00:30]} d5 {[%emt 0:06:48]} 12. c5 {[%emt 0:09:04]} c6 {[%emt 0:00:00]} 13. b4 {[%emt 0:02:07]} Bf5 {[%emt 0:00:58]} 14. Re1 {[%emt 0:06:23]} Qd7 {[%emt 0:04:11]} 15. a4 {[%emt 0:01:32]} Rfe8 {[%emt 0:01:37]} 16. b5 {[%emt 0:07:14]} Ng6 {[%emt 0:05:03]} 17. Be3 {[%emt 0:06:10]} Re7 {[%emt 0:04:01]} 18. Qb3 {[%emt 0:07:49]} Rae8 {[%emt 0:03:33]} 19. a5 {[%emt 0:04:59]} (19. Bd2 $11) 19... Ng4 $2 {[%emt 0:05:56] [#]} (19... Bh3 $1 $15 {keeps the upper hand.} 20. Bh1 a6 21. bxc6 bxc6) 20. Bd2 {[%emt 0:06:27]} (20. a6 $142 $1) 20... h5 {[%emt 0:06:55] [#]} (20... Bd3 $14) 21. h4 $2 {[%emt 0:02:59]} (21. a6 $1 $18) 21... Rxe1+ {[%emt 0:10:49]} 22. Rxe1 {[%emt 0:00:10]} Rxe1+ {[%emt 0:00:09]} 23. Bxe1 {[%emt 0:00:11]} Qe7 {[%emt 0:00:52]} 24. Bd2 {[%emt 0:01:35]} Nxh4 {[%emt 0:05:02]} 25. bxc6 {[%emt 0:01:20]} bxc6 {[%emt 0:02:05]} 26. Qb8+ {[%emt 0:01:59]} ({But not} 26. gxh4 $6 Qc7 $18) 26... Kh7 {[%emt 0:00:06]} 27. gxh4 {[%emt 0:00:26]} Qxh4 {[%emt 0:00:18]} 28. Qg3 {[%emt 0:00:29]} Qf6 {[%emt 0:02:26]} 29. Ne2 {[%emt 0:01:19]} h4 {[%emt 0:02:02]} 30. Qf4 {[%emt 0:01:37]} Nh6 {[%emt 0:03:57]} 31. Qg5 {[%emt 0:03:17]} Qxg5 {[%emt 0:04:32]} 32. Bxg5 {[%emt 0:00:10]} h3 {[%emt 0:00:16]} 33. Bf1 {[%emt 0:05:51]} Ng8 {[%emt 0:06:07]} (33... Bd3 $142 34. Bxh6 Kxh6) 34. Kh2 {[%emt 0:00:34]} f6 {[%emt 0:00:46]} 35. Bf4 {[%emt 0:01:52]} Ne7 {[%emt 0:01:42]} 36. Bb8 {[%emt 0:01:41]} Bd3 {[%emt 0:02:14]} 37. Bxa7 {[%emt 0:03:09]} g5 {[%emt 0:01:34]} 38. Kxh3 {[%emt 0:04:49]} Nf5 $18 {[%emt 0:00:37]} 39. Ng3 {[%emt 0:00:53]} Bxf1+ {[%emt 0:00:17]} 40. Nxf1 {[%emt 0:00:07]} Nxd4 {[%emt 0:00:03]} 41. Bb6 {[%emt 0:00:27]} Nb5 {[%emt 0:00:24]} 42. a6 {[%emt 0:00:07]} Kg6 {[%emt 0:00:45]} 43. a7 {[%emt 0:00:15]} Nxa7 {[%emt 0:00:05]} 44. Bxa7 {[%emt 0:00:02]} Kf5 {[%emt 0:00:09]} 45. Kg3 {[%emt 0:02:11]} Ke4 {[%emt 0:00:39]} 46. f3+ {[%emt 0:00:54]} Kd3 {[%emt 0:00:29]} 47. Kf2 {[%emt 0:00:11]} d4 {[%emt 0:01:02]} 48. Ng3 {[%emt 0:02:36]} Kc2 {[%emt 0:01:05]} 49. Nf5 {[%emt 0:01:20]} d3 {[%emt 0:00:46]} 50. Bb6 {[%emt 0:01:00]} Kc3 {[%emt 0:02:31]} 51. Bd8 {[%emt 0:01:40]} Kc4 {[%emt 0:01:07]} 52. Bxf6 {[%emt 0:01:19]} Kxc5 {[%emt 0:00:12]} 53. Ke3 {[%emt 0:00:24]} Kc4 {[%emt 0:00:44]} 54. Kd2 {[%emt 0:00:26]} Kd5 {[%emt 0:00:50]} 55. Bxg5 {[%emt 0:00:09]} Ke5 {[%emt 0:00:39]} 56. Ne3 {[%emt 0:00:20]} c5 {[%emt 0:00:20]} 57. Kxd3 {[%emt 0:00:10]} Ke6 {[%emt 0:00:30]} 58. f4 {[%emt 0:00:11]} Kf7 {[%emt 0:00:25]} 59. Kc4 {[%emt 0:00:05]} 1-0

[Event "NOR-ch Women 2020"]
[Site "Bergen"]
[Date "2020.02.29"]
[Round "3.1"]
[White "Machlik, Monika"]
[Black "Stanford, Sheila Barth"]
[Result "0-1"]
[ECO "D85"]
[WhiteElo "2106"]
[BlackElo "2145"]
[Annotator "ChessBase"]
[PlyCount "166"]
[EventDate "2020.02.28"]
[EventType "swiss"]
[EventCountry "NOR"]
[SourceTitle "playchess.com"]
[Source "ChessBase"]
[SourceQuality "1"]
[TimeControl "5400+30"]

1. d4 {[%emt 0:00:00]} Nf6 {[%emt 0:02:59]} 2. c4 {[%emt 0:00:00]} g6 {[%emt 0:00:06]} 3. Nc3 {[%emt 0:00:15]} d5 {[%emt 0:00:09]} 4. cxd5 {[%emt 0:14:49]} Nxd5 {[%emt 0:00:06]} 5. Na4 {[%emt 0:00:11]} Bg7 {[%emt 0:00:17]} 6. e4 {[%emt 0:00:11]} Nb6 {[%emt 0:00:18]} 7. Be3 {[%emt 0:00:09]} O-O {[%emt 0:00:31]} 8. Nf3 {[%emt 0:00:17]} Bg4 {[%emt 0:00:41]} 9. Nc5 {[%emt 0:00:56]} Nc6 {[%emt 0:01:32]} 10. Nxb7 {[%emt 0:01:07]} Qb8 {[%emt 0:00:11]} 11. Ba6 {[%emt 0:10:46]} Bxf3 {[%emt 0:01:09]} 12. gxf3 {[%emt 0:00:34]} Nb4 {[%emt 0:00:32]} 13. Nc5 {[%emt 0:05:32]} Bxd4 {[%emt 0:01:27]} 14. Bxd4 {[%emt 0:01:48]} Rd8 {[%emt 0:02:26]} 15. O-O {[%emt 0:02:38]} Nxa6 {[%emt 0:02:14]} 16. Nxa6 {[%emt 0:00:52]} Qc8 {[%emt 0:00:08]} 17. Qe2 {[%emt 0:01:41]} Rxd4 {[%emt 0:00:25]} 18. Rac1 {[%emt 0:01:08]} c6 {[%emt 0:06:11]} 19. Nc5 {[%emt 0:04:00]} Qh3 {[%emt 0:11:34]} 20. Nb3 {[%emt 0:05:10]} Rd6 {[%emt 0:02:04]} 21. e5 {[%emt 0:02:02]} Rd5 {[%emt 0:06:48]} 22. Rxc6 {[%emt 0:00:16]} Nd7 {[%emt 0:00:31]} 23. f4 {[%emt 0:07:06]} g5 {[%emt 0:01:10]} 24. Rc3 {[%emt 0:12:14]} Qf5 {[%emt 0:01:20]} 25. Qf3 {[%emt 0:01:27]} e6 {[%emt 0:01:42]} 26. fxg5 {[%emt 0:08:15]} Qxg5+ {[%emt 0:01:53]} 27. Kh1 {[%emt 0:02:39]} Nxe5 {[%emt 0:01:29]} 28. Qe4 {[%emt 0:01:43]} Ng6 {[%emt 0:00:55]} 29. Rg3 {[%emt 0:05:42]} Qf5 {[%emt 0:01:53]} 30. Qxf5 {[%emt 0:01:58]} Rxf5 {[%emt 0:00:05]} 31. Rc3 {[%emt 0:01:03]} Rd8 {[%emt 0:03:02]} 32. Rc5 {[%emt 0:03:55]} Rxc5 {[%emt 0:01:38]} 33. Nxc5 {[%emt 0:00:01]} Rd2 {[%emt 0:00:06]} 34. Na4 {[%emt 0:00:59]} Ne5 {[%emt 0:01:37]} 35. Kg2 {[%emt 0:02:09]} Nd3 {[%emt 0:00:53]} 36. Kf3 {[%emt 0:00:50]} Nxb2 {[%emt 0:00:14]} 37. Nxb2 {[%emt 0:00:10]} Rxb2 {[%emt 0:00:02]} 38. Ra1 {[%emt 0:00:06]} a5 {[%emt 0:00:46]} 39. a4 {[%emt 0:00:32]} Rb4 {[%emt 0:00:56]} 40. Ra3 {[%emt 0:00:52]} Kg7 {[%emt 0:01:37]} 41. Kg3 {[%emt 0:00:12]} Kg6 {[%emt 0:00:27]} 42. Kg2 {[%emt 0:01:33]} f5 {[%emt 0:03:28]} 43. Re3 {[%emt 0:02:14]} Kf6 {[%emt 0:00:05]} 44. Rh3 {[%emt 0:00:34]} Rxa4 {[%emt 0:03:37]} 45. Rxh7 {[%emt 0:00:04]} Rg4+ {[%emt 0:00:05]} 46. Kf3 {[%emt 0:00:55]} Rg7 {[%emt 0:00:02]} 47. Rh4 {[%emt 0:00:50]} Ra7 {[%emt 0:00:05]} 48. Ra4 {[%emt 0:00:06]} Ke5 {[%emt 0:00:31]} 49. h4 {[%emt 0:00:27]} Kf6 {[%emt 0:02:05]} 50. Ke3 {[%emt 0:00:25]} e5 {[%emt 0:00:03]} 51. Kf3 {[%emt 0:01:15]} Kg6 {[%emt 0:00:05]} 52. Kg3 {[%emt 0:00:31]} Ra6 {[%emt 0:06:50]} 53. Kf3 {[%emt 0:00:10]} Kh5 {[%emt 0:00:31]} 54. Ke3 {[%emt 0:00:56]} Kg6 {[%emt 0:12:33]} 55. Kf3 {[%emt 0:00:01]} Kf6 {[%emt 0:00:05]} 56. Ke3 {[%emt 0:00:57]} Ra8 {[%emt 0:00:27]} 57. Kf3 {[%emt 0:00:06]} Ke6 {[%emt 0:00:08]} 58. Ke3 {[%emt 0:00:41]} Kd5 {[%emt 0:01:05]} 59. Kd3 {[%emt 0:00:48]} e4+ {[%emt 0:03:42]} 60. Kc3 {[%emt 0:00:39]} Ke5 {[%emt 0:00:06]} 61. Kd2 {[%emt 0:00:25]} Kf4 {[%emt 0:00:07]} 62. Ke2 {[%emt 0:00:03]} Ra6 {[%emt 0:01:09]} 63. f3 {[%emt 0:00:59]} Re6 {[%emt 0:16:22]} 64. Rxa5 {[%emt 0:00:05]} exf3+ {[%emt 0:00:06]} 65. Kf2 {[%emt 0:00:23]} Re2+ {[%emt 0:00:18]} 66. Kf1 {[%emt 0:00:35]} Rh2 {[%emt 0:00:16]} 67. Ra8 {[%emt 0:00:59]} Rxh4 {[%emt 0:01:10]} 68. Kf2 {[%emt 0:00:26]} Rh2+ {[%emt 0:00:04]} 69. Kf1 {[%emt 0:00:04]} Rb2 {[%emt 0:00:05]} 70. Ra7 {[%emt 0:00:24]} Rd2 {[%emt 0:02:57]} 71. Ra8 {[%emt 0:00:39]} f2 {[%emt 0:01:17]} 72. Ra7 {[%emt 0:00:58]} Kg4 {[%emt 0:00:07]} 73. Ra8 {[%emt 0:00:19]} f4 {[%emt 0:00:12]} 74. Ra7 {[%emt 0:00:30]} Kg3 {[%emt 0:00:10]} 75. Ra3+ {[%emt 0:00:34]} Kg4 {[%emt 0:00:11]} 76. Ra8 {[%emt 0:00:26]} Rd1+ {[%emt 0:00:23]} 77. Kxf2 {[%emt 0:00:12]} Rd2+ {[%emt 0:00:03]} 78. Kf1 {[%emt 0:00:58]} Kg3 {[%emt 0:00:09]} 79. Ra1 {[%emt 0:00:33]} Rh2 {[%emt 0:00:18]} 80. Ra8 {[%emt 0:00:19]} Rh1+ {[%emt 0:00:09]} 81. Ke2 {[%emt 0:00:00]} f3+ {[%emt 0:00:10]} 82. Ke3 {[%emt 0:00:02]} Re1+ {[%emt 0:00:08]} 83. Kd2 {[%emt 0:00:00]} f2 {[%emt 0:00:07]} 0-1

[Event "NOR-ch Women 2020"]
[Site "Bergen"]
[Date "2020.02.29"]
[Round "3.2"]
[White "Skaslien, Ingrid"]
[Black "Johnsen, Sylvia"]
[Result "0-1"]
[ECO "E20"]
[WhiteElo "1847"]
[BlackElo "1862"]
[Annotator "NA"]
[PlyCount "56"]
[EventDate "2020.02.28"]
[EventType "swiss"]
[EventCountry "NOR"]
[SourceTitle "playchess.com"]
[Source "ChessBase"]
[SourceQuality "1"]
[TimeControl "5400+30"]

1. d4 {[%emt 0:00:00]} d5 {[%emt 0:01:18]} 2. c4 {[%emt 0:00:00]} e6 {[%emt 0:00:09]} 3. Nc3 {[%emt 0:00:03]} Bb4 {[%emt 0:00:10]} 4. e3 {[%emt 0:00:12]} Nf6 {[%emt 0:00:55]} 5. Bd2 {[%emt 0:00:51]} dxc4 {[%emt 0:01:20]} 6. Bxc4 {[%emt 0:00:14]} O-O {[%emt 0:00:20]} 7. Nge2 {[%emt 0:01:44]} b6 {[%emt 0:03:21]} 8. a3 {[%emt 0:01:29]} Bd6 {[%emt 0:00:33]} 9. O-O {[%emt 0:01:05]} e5 {[%emt 0:02:29]} 10. d5 $11 {[%emt 0:10:15]} (10. dxe5 $16 Bxe5 11. f4) 10... e4 {[%emt 0:02:10]} 11. Ng3 {[%emt 0:00:55]} Qe7 {[%emt 0:00:41]} 12. Qc2 {[%emt 0:00:31]} Bxg3 {[%emt 0:03:15]} 13. hxg3 {[%emt 0:01:06]} Ba6 {[%emt 0:01:32]} 14. Bxa6 {[%emt 0:06:20]} Nxa6 {[%emt 0:00:06]} 15. b4 {[%emt 0:02:11]} Rad8 {[%emt 0:05:33]} 16. Rac1 {[%emt 0:11:48]} Rfe8 {[%emt 0:12:06]} 17. Qa4 {[%emt 0:02:37]} Nb8 {[%emt 0:00:51]} 18. Qxa7 {[%emt 0:01:04]} Qe5 {[%emt 0:02:36]} 19. Rfd1 {[%emt 0:04:07]} Ng4 {[%emt 0:10:18]} 20. Ne2 {[%emt 0:02:56]} Qxd5 {[%emt 0:25:08]} 21. Qxc7 {[%emt 0:04:19]} Qh5 {[%emt 0:05:01]} 22. Qf4 {[%emt 0:05:51]} g5 {[%emt 0:02:50]} 23. Qf5 {[%emt 0:03:24]} Re5 {[%emt 0:01:35]} 24. Bc3 {[%emt 0:00:50]} Qh2+ {[%emt 0:04:38]} 25. Kf1 {[%emt 0:00:43]} Nxe3+ {[%emt 0:00:50]} 26. Ke1 {[%emt 0:02:01]} Nxg2+ {[%emt 0:01:00]} 27. Kf1 {[%emt 0:00:56]} Ne3+ {[%emt 0:00:26]} 28. Ke1 {[%emt 0:00:50]} Rxd1+ {[%emt 0:06:23]} 0-1

[Event "NOR-ch Women 2020"]
[Site "Bergen"]
[Date "2020.02.29"]
[Round "3.3"]
[White "Dolzhikova, Olga"]
[Black "Nordquelle, Amelia"]
[Result "1-0"]
[ECO "B22"]
[WhiteElo "2149"]
[BlackElo "1768"]
[Annotator "ChessBase"]
[PlyCount "65"]
[EventDate "2020.02.28"]
[EventType "swiss"]
[EventCountry "NOR"]
[SourceTitle "playchess.com"]
[Source "ChessBase"]
[SourceQuality "1"]
[TimeControl "5400+30"]

1. e4 {[%emt 0:00:00]} c5 {[%emt 0:01:39]} 2. c3 {[%emt 0:00:00]} d5 {[%emt 0:00:34]} 3. exd5 {[%emt 0:00:00]} Qxd5 {[%emt 0:00:07]} 4. d4 {[%emt 0:00:00]} Nf6 {[%emt 0:01:00]} 5. Nf3 {[%emt 0:00:31]} e6 {[%emt 0:05:54]} 6. Bd3 {[%emt 0:00:07]} Nc6 {[%emt 0:00:58]} 7. a3 {[%emt 0:00:23]} cxd4 {[%emt 0:12:36]} 8. cxd4 {[%emt 0:00:06]} Be7 {[%emt 0:01:01]} 9. Nc3 {[%emt 0:00:55]} Qd8 {[%emt 0:00:28]} 10. O-O {[%emt 0:01:29]} O-O {[%emt 0:00:57]} 11. Be3 {[%emt 0:00:25]} a6 {[%emt 0:02:02]} 12. Qe2 {[%emt 0:01:27]} b5 {[%emt 0:03:03]} 13. Rad1 {[%emt 0:00:07]} Qc7 {[%emt 0:01:26]} 14. Bb1 {[%emt 0:00:57]} Rd8 {[%emt 0:02:17]} 15. Rfe1 {[%emt 0:00:37]} Bb7 {[%emt 0:03:03]} 16. Ng5 {[%emt 0:02:07]} h6 {[%emt 0:03:23]} 17. Nge4 {[%emt 0:03:50]} Nxe4 {[%emt 0:09:36]} 18. Nxe4 {[%emt 0:00:35]} Bf8 {[%emt 0:03:44]} 19. Qc2 {[%emt 0:08:55]} g6 {[%emt 0:07:14]} 20. d5 {[%emt 0:04:09]} exd5 {[%emt 0:01:34]} 21. Nf6+ {[%emt 0:00:19]} Kh8 {[%emt 0:03:11]} 22. Nxd5 {[%emt 0:00:19]} Qa5 {[%emt 0:01:57]} 23. Bd2 {[%emt 0:11:30]} b4 {[%emt 0:05:34]} 24. Nf4 {[%emt 0:16:22]} Qc5 {[%emt 0:06:11]} 25. Nxg6+ {[%emt 0:01:00]} fxg6 {[%emt 0:00:13]} 26. Qxg6 {[%emt 0:00:13]} Rd7 {[%emt 0:01:26]} 27. Bc3+ {[%emt 0:01:04]} Qxc3 {[%emt 0:05:22]} 28. bxc3 {[%emt 0:00:39]} Ne5 {[%emt 0:01:21]} 29. Qf6+ {[%emt 0:00:54]} Rg7 {[%emt 0:02:17]} 30. Qxe5 {[%emt 0:02:30]} Bxg2 {[%emt 0:07:31]} 31. Rd7 {[%emt 0:00:39]} Bh3+ {[%emt 0:03:44] Re7 Rf7 Rxf7+ Bg7} 32. Rxg7 {[%emt 0:00:00]} Bxg7 {[%emt 0:00:09]} 33. Qe4 {[%emt 0:00:06]} 1-0